[Event "Late-Titled-Tuesday-Blitz-February-27-2024"]
[Site "Chess.com"]
[Date "2024.02.27"]
[Round "9"]
[White "db-banana"]
[Black "NCchamp"]
[Result "1/2-1/2"]
[WhiteElo "2480"]
[BlackElo "2363"]
[TimeControl "180+1"]
[EndTime "15:45:33 PST"]
[Termination "Game drawn by repetition"]

1. e4 {[%clk 0:03:00.9]} 1... c6 {[%clk 0:02:59.1]} 2. d4 {[%clk 0:03:00.9]}
2... d5 {[%clk 0:03:00]} 3. Nc3 {[%clk 0:03:01.8]} 3... dxe4 {[%clk 0:02:59.8]}
4. Nxe4 {[%clk 0:03:02.7]} 4... Nf6 {[%clk 0:02:59.3]} 5. Nxf6+ {[%clk
0:03:03.2]} 5... exf6 {[%clk 0:03:00.2]} 6. c3 {[%clk 0:03:03.4]} 6... Bd6
{[%clk 0:03:00.1]} 7. Bd3 {[%clk 0:03:03.9]} 7... Na6 {[%clk 0:02:59.8]} 8. Qc2
{[%clk 0:03:02.6]} 8... Nc7 {[%clk 0:03:00]} 9. Ne2 {[%clk 0:03:03.2]} 9... h5
{[%clk 0:02:47]} 10. Be3 {[%clk 0:03:01.7]} 10... Kf8 {[%clk 0:02:44.1]} 11.
O-O-O {[%clk 0:02:56.7]} 11... g6 {[%clk 0:02:43.7]} 12. h3 {[%clk 0:02:44]}
12... Kg7 {[%clk 0:02:43.7]} 13. g4 {[%clk 0:02:43.2]} 13... Nd5 {[%clk
0:02:41.7]} 14. Rdg1 {[%clk 0:02:26.9]} 14... hxg4 {[%clk 0:02:26.7]} 15. hxg4
{[%clk 0:02:27.1]} 15... Rxh1 {[%clk 0:02:27.3]} 16. Rxh1 {[%clk 0:02:28]} 16...
Nxe3 {[%clk 0:02:25.3]} 17. fxe3 {[%clk 0:02:28.9]} 17... Bxg4 {[%clk
0:02:25.3]} 18. Rg1 {[%clk 0:02:10.1]} 18... Bh5 {[%clk 0:02:25.1]} 19. Nf4
{[%clk 0:02:01.3]} 19... Bxf4 {[%clk 0:02:24.8]} 20. exf4 {[%clk 0:02:02.2]}
20... Qd6 {[%clk 0:02:11.9]} 21. Qf2 {[%clk 0:01:48]} 21... Re8 {[%clk
0:01:56.7]} 22. Kc2 {[%clk 0:01:24.5]} 22... Qd5 {[%clk 0:01:46.5]} 23. b3
{[%clk 0:01:20.9]} 23... Qf3 {[%clk 0:01:43.3]} 24. Qxf3 {[%clk 0:00:52.4]}
24... Bxf3 {[%clk 0:01:44.2]} 25. a4 {[%clk 0:00:53]} 25... g5 {[%clk
0:01:39.1]} 26. fxg5 {[%clk 0:00:51.5]} 26... Be4 {[%clk 0:01:30.5]} 27. gxf6+
{[%clk 0:00:47.1]} 27... Kxf6 {[%clk 0:01:31.4]} 28. Bxe4 {[%clk 0:00:37.2]}
28... Rxe4 {[%clk 0:01:31.1]} 29. Kd3 {[%clk 0:00:37.7]} 29... Rh4 {[%clk
0:01:29.2]} 30. Rg8 {[%clk 0:00:36.2]} 30... b5 {[%clk 0:01:21.3]} 31. Rc8
{[%clk 0:00:27.9]} 31... Rh3+ {[%clk 0:01:20.7]} 32. Kc2 {[%clk 0:00:27.7]}
32... Rh2+ {[%clk 0:01:18.1]} 33. Kc1 {[%clk 0:00:28.1]} 33... bxa4 {[%clk
0:00:57.5]} 34. Rxc6+ {[%clk 0:00:27.9]} 34... Kf5 {[%clk 0:00:57.6]} 35. bxa4
{[%clk 0:00:28.1]} 35... Ke4 {[%clk 0:00:53.5]} 36. Rf6 {[%clk 0:00:17.5]} 36...
Kd3 {[%clk 0:00:53.4]} 37. Rf3+ {[%clk 0:00:12]} 37... Kc4 {[%clk 0:00:53.7]}
38. Kb1 {[%clk 0:00:11.6]} 38... Rd2 {[%clk 0:00:41.9]} 39. Rxf7 {[%clk
0:00:11.2]} 39... Kxc3 {[%clk 0:00:41.6]} 40. Rxa7 {[%clk 0:00:11.6]} 40... Rxd4
{[%clk 0:00:39.2]} 41. Ka2 {[%clk 0:00:10.4]} 41... Kb4 {[%clk 0:00:35.3]} 42.
a5 {[%clk 0:00:07.7]} 42... Rd2+ {[%clk 0:00:35.1]} 43. Kb1 {[%clk 0:00:08.4]}
43... Kb5 {[%clk 0:00:33.1]} 44. Kc1 {[%clk 0:00:08]} 44... Rh2 {[%clk
0:00:32.8]} 45. Kb1 {[%clk 0:00:07]} 45... Rg2 {[%clk 0:00:30.6]} 46. Ra8 {[%clk
0:00:07.2]} 46... Rg6 {[%clk 0:00:24]} 47. Kb2 {[%clk 0:00:05]} 47... Ra6 {[%clk
0:00:23]} 48. Rb8+ {[%clk 0:00:03.6]} 48... Kxa5 {[%clk 0:00:22.7]} 49. Ka3
{[%clk 0:00:04.1]} 49... Rb6 {[%clk 0:00:20.4]} 50. Rh8 {[%clk 0:00:04.7]} 50...
Rg6 {[%clk 0:00:19.3]} 51. Rh5+ {[%clk 0:00:05.1]} 51... Kb6 {[%clk 0:00:19.4]}
52. Kb4 {[%clk 0:00:05.6]} 52... Rg4+ {[%clk 0:00:19.7]} 53. Kc3 {[%clk
0:00:06.4]} 53... Rg3+ {[%clk 0:00:19.6]} 54. Kd4 {[%clk 0:00:07.1]} 54... Rg4+
{[%clk 0:00:20]} 55. Kd5 {[%clk 0:00:06.7]} 55... Rg1 {[%clk 0:00:18.7]} 56.
Rh6+ {[%clk 0:00:06.6]} 56... Kc7 {[%clk 0:00:18.6]} 57. Rh7+ {[%clk 0:00:06.6]}
57... Kb6 {[%clk 0:00:18.6]} 58. Rh2 {[%clk 0:00:06.7]} 58... Rd1+ {[%clk
0:00:18.1]} 59. Kc4 {[%clk 0:00:07.3]} 59... Rc1+ {[%clk 0:00:18.2]} 60. Kb3
{[%clk 0:00:07.7]} 60... Rg1 {[%clk 0:00:17.4]} 61. Rh6+ {[%clk 0:00:07]} 61...
Kc5 {[%clk 0:00:17.6]} 62. Rh5+ {[%clk 0:00:07.7]} 62... Kd6 {[%clk 0:00:17.8]}
63. Rh8 {[%clk 0:00:08.2]} 63... Rg4 {[%clk 0:00:16.8]} 64. Ra8 {[%clk
0:00:07.4]} 64... Kc5 {[%clk 0:00:16.4]} 65. Ra6 {[%clk 0:00:07.2]} 65... Kb5
{[%clk 0:00:15.9]} 66. Rh6 {[%clk 0:00:07.3]} 66... Rg3+ {[%clk 0:00:16.1]} 67.
Kc2 {[%clk 0:00:06.6]} 67... Kc4 {[%clk 0:00:15.4]} 68. Rh4+ {[%clk 0:00:07.2]}
68... Kc5 {[%clk 0:00:15.4]} 69. Ra4 {[%clk 0:00:07.8]} 69... Rg2+ {[%clk
0:00:15.2]} 70. Kc3 {[%clk 0:00:07.4]} 70... Rg3+ {[%clk 0:00:16.1]} 71. Kd2
{[%clk 0:00:08]} 71... Rg2+ {[%clk 0:00:15.2]} 72. Ke3 {[%clk 0:00:08.6]} 72...
Rg3+ {[%clk 0:00:15.3]} 73. Kf2 {[%clk 0:00:09]} 73... Rb3 {[%clk 0:00:15]} 74.
Ra5+ {[%clk 0:00:09.3]} 74... Kd4 {[%clk 0:00:14.8]} 75. Ra4+ {[%clk 0:00:09.5]}
75... Ke5 {[%clk 0:00:15.1]} 76. Ra5+ {[%clk 0:00:10]} 76... Kf4 {[%clk
0:00:15.3]} 77. Ra4+ {[%clk 0:00:10.7]} 77... Kf5 {[%clk 0:00:15.5]} 78. Ra5+
{[%clk 0:00:11.5]} 78... Kf4 {[%clk 0:00:15.8]} 79. Ra4+ {[%clk 0:00:12.2]}
79... Kf5 {[%clk 0:00:16.2]} 80. Ra5+ {[%clk 0:00:12.4]} 80... Kf4 {[%clk
0:00:16.3]} 1/2-1/2

[Event "Late-Titled-Tuesday-Blitz-February-27-2024"]
[Site "Chess.com"]
[Date "2024.02.27"]
[Round "9"]
[White "Resignify"]
[Black "ZachHKL"]
[Result "0-1"]
[WhiteElo "2208"]
[BlackElo "2112"]
[TimeControl "180+1"]
[EndTime "15:45:55 PST"]
[Termination "ZachHKL won by resignation"]

1. e4 {[%clk 0:03:00.9]} 1... c5 {[%clk 0:02:59.5]} 2. Nc3 {[%clk 0:02:58.7]}
2... d6 {[%clk 0:02:59.3]} 3. g3 {[%clk 0:02:59.3]} 3... g6 {[%clk 0:02:59]} 4.
Bg2 {[%clk 0:02:59.8]} 4... Bg7 {[%clk 0:02:57.2]} 5. d3 {[%clk 0:02:59.9]} 5...
Nc6 {[%clk 0:02:53.3]} 6. f4 {[%clk 0:03:00]} 6... e6 {[%clk 0:02:52.7]} 7. Nf3
{[%clk 0:03:00.1]} 7... Nd4 {[%clk 0:02:52.7]} 8. O-O {[%clk 0:02:57.4]} 8...
Ne7 {[%clk 0:02:52.8]} 9. Be3 {[%clk 0:02:56.9]} 9... Nec6 {[%clk 0:02:52.4]}
10. Rb1 {[%clk 0:02:53.6]} 10... O-O {[%clk 0:02:48.2]} 11. e5 {[%clk
0:02:51.9]} 11... dxe5 {[%clk 0:02:46.2]} 12. Nxe5 {[%clk 0:02:49.9]} 12... Nxe5
{[%clk 0:02:43]} 13. fxe5 {[%clk 0:02:50.8]} 13... Bxe5 {[%clk 0:02:41.4]} 14.
Ne4 {[%clk 0:02:51.1]} 14... Qc7 {[%clk 0:02:30.8]} 15. c3 {[%clk 0:02:49]}
15... Nf5 {[%clk 0:02:29.4]} 16. Bxc5 {[%clk 0:02:41.9]} 16... Bd6 {[%clk
0:02:22.8]} 17. Bf2 {[%clk 0:02:26.4]} 17... Be7 {[%clk 0:02:17.1]} 18. g4
{[%clk 0:02:21.4]} 18... Nd6 {[%clk 0:02:15]} 19. Bg3 {[%clk 0:02:16.4]} 19...
Qb6+ {[%clk 0:02:12.6]} 20. Bf2 {[%clk 0:02:15.8]} 20... Qc7 {[%clk 0:02:11.3]}
21. Qf3 {[%clk 0:02:11.4]} 21... Nxe4 {[%clk 0:02:09.4]} 22. Qxe4 {[%clk
0:02:11.7]} 22... Bd6 {[%clk 0:02:04.2]} 23. h3 {[%clk 0:02:10.8]} 23... Bc5
{[%clk 0:02:01.1]} 24. d4 {[%clk 0:02:01.1]} 24... Bd6 {[%clk 0:01:58.5]} 25.
Bh4 {[%clk 0:02:00.6]} 25... Be7 {[%clk 0:01:43.1]} 26. Bf2 {[%clk 0:01:50]}
26... Rb8 {[%clk 0:01:39.2]} 27. Be3 {[%clk 0:01:47.3]} 27... Bd7 {[%clk
0:01:32.7]} 28. Bh6 {[%clk 0:01:44.7]} 28... Bc6 {[%clk 0:01:24.7]} 29. Qf4
{[%clk 0:01:37]} 29... Qxf4 {[%clk 0:01:21.1]} 30. Bxf4 {[%clk 0:01:36.9]} 30...
Rbc8 {[%clk 0:01:18.5]} 31. Rbe1 {[%clk 0:01:29.8]} 31... Bh4 {[%clk 0:01:14.7]}
32. Re3 {[%clk 0:01:19.2]} 32... Bxg2 {[%clk 0:01:06]} 33. Kxg2 {[%clk
0:01:19.3]} 33... Be7 {[%clk 0:01:01.4]} 34. Ref3 {[%clk 0:01:17.1]} 34... f6
{[%clk 0:00:57.8]} 35. Re1 {[%clk 0:01:13.1]} 35... Kf7 {[%clk 0:00:56.7]} 36.
Rfe3 {[%clk 0:01:12.1]} 36... e5 {[%clk 0:00:49.2]} 37. dxe5 {[%clk 0:01:09.3]}
37... Bc5 {[%clk 0:00:49.7]} 38. R3e2 {[%clk 0:01:04.6]} 38... Rfd8 {[%clk
0:00:46.2]} 39. exf6 {[%clk 0:01:01.4]} 39... Kxf6 {[%clk 0:00:34.6]} 40. Rf1
{[%clk 0:01:00.9]} 40... Kg7 {[%clk 0:00:31.8]} 41. Bg5 {[%clk 0:00:54.5]} 41...
Re8 {[%clk 0:00:30.2]} 42. Rfe1 {[%clk 0:00:44.2]} 42... Rf8 {[%clk 0:00:26.6]}
43. Bh4 {[%clk 0:00:38.1]} 43... Rf7 {[%clk 0:00:22.8]} 44. Bf2 {[%clk
0:00:32.4]} 44... Bd6 {[%clk 0:00:18.7]} 45. Bd4+ {[%clk 0:00:31.2]} 45... Kg8
{[%clk 0:00:18.5]} 46. Re6 {[%clk 0:00:29.8]} 46... Bf8 {[%clk 0:00:17.9]} 47.
Re8 {[%clk 0:00:24.9]} 47... Rfc7 {[%clk 0:00:15.3]} 48. R1e6 {[%clk 0:00:15.3]}
48... Kf7 {[%clk 0:00:15.1]} 49. Rxc8 {[%clk 0:00:13.8]} 49... Rxc8 {[%clk
0:00:14.9]} 50. Rf6+ {[%clk 0:00:13.1]} 50... Kg8 {[%clk 0:00:15.4]} 51. Re6
{[%clk 0:00:10.5]} 51... a6 {[%clk 0:00:14.3]} 52. a3 {[%clk 0:00:09.5]} 52...
Rd8 {[%clk 0:00:12.6]} 53. Re4 {[%clk 0:00:08]} 53... Bg7 {[%clk 0:00:12.8]} 54.
Kf3 {[%clk 0:00:05.5]} 54... Bxd4 {[%clk 0:00:11.3]} 55. Rxd4 {[%clk 0:00:05.8]}
55... Rf8+ {[%clk 0:00:12]} 56. Ke3 {[%clk 0:00:05.3]} 56... Re8+ {[%clk
0:00:12.9]} 57. Re4 {[%clk 0:00:05.5]} 57... Rd8 {[%clk 0:00:13.1]} 58. Re7
{[%clk 0:00:05.1]} 58... b5 {[%clk 0:00:11.9]} 59. b3 {[%clk 0:00:04.7]} 59...
Rd6 {[%clk 0:00:12.3]} 60. c4 {[%clk 0:00:04.8]} 60... bxc4 {[%clk 0:00:12.8]}
61. bxc4 {[%clk 0:00:05.7]} 61... Kf8 {[%clk 0:00:12.8]} 62. Rxh7 {[%clk
0:00:05]} 62... Re6+ {[%clk 0:00:13.3]} 63. Kd4 {[%clk 0:00:05.1]} 63... Ke8
{[%clk 0:00:13.5]} 64. c5 {[%clk 0:00:04.6]} 64... Kd8 {[%clk 0:00:13.3]} 65.
Rg7 {[%clk 0:00:04.5]} 65... Kc8 {[%clk 0:00:13.6]} 66. h4 {[%clk 0:00:04.7]}
66... Rf6 {[%clk 0:00:12]} 67. Ke5 {[%clk 0:00:03.9]} 67... Rc6 {[%clk
0:00:11.7]} 68. Kd5 {[%clk 0:00:04.4]} 68... Rf6 {[%clk 0:00:11.8]} 69. Re7
{[%clk 0:00:03.3]} 69... Rf4 {[%clk 0:00:10.6]} 70. Re8+ {[%clk 0:00:02.5]}
70... Kc7 {[%clk 0:00:10.7]} 71. Re7+ {[%clk 0:00:03.1]} 71... Kc8 {[%clk
0:00:11.3]} 72. Re6 {[%clk 0:00:03]} 72... Rxg4 {[%clk 0:00:11.3]} 73. Rxa6
{[%clk 0:00:02.9]} 73... Rxh4 {[%clk 0:00:11.2]} 74. Rxg6 {[%clk 0:00:03.3]}
74... Ra4 {[%clk 0:00:10.6]} 75. Kc6 {[%clk 0:00:03.3]} 75... Ra6+ {[%clk
0:00:10.8]} 76. Kb5 {[%clk 0:00:03.5]} 76... Rxg6 {[%clk 0:00:11.7]} 77. a4
{[%clk 0:00:03.9]} 77... Kb7 {[%clk 0:00:12.2]} 78. a5 {[%clk 0:00:03.9]} 78...
Ra6 {[%clk 0:00:12.7]} 79. Kb4 {[%clk 0:00:02.5]} 79... Rc6 {[%clk 0:00:13.1]}
80. Kb5 {[%clk 0:00:02.8]} 80... Rc8 {[%clk 0:00:13.1]} 81. a6+ {[%clk
0:00:02.1]} 81... Ka7 {[%clk 0:00:13.7]} 82. Kb4 {[%clk 0:00:02.1]} 82... Kxa6
{[%clk 0:00:13.7]} 83. Kc4 {[%clk 0:00:03]} 83... Kb7 {[%clk 0:00:13.9]} 84. Kd5
{[%clk 0:00:03.9]} 84... Kc7 {[%clk 0:00:14.7]} 85. Kd4 {[%clk 0:00:03.4]} 85...
Ra8 {[%clk 0:00:15.6]} 86. Kc4 {[%clk 0:00:04.3]} 86... Kc6 {[%clk 0:00:16]} 87.
Kb4 {[%clk 0:00:04.6]} 87... Rb8+ {[%clk 0:00:16.6]} 88. Kc4 {[%clk 0:00:05]}
88... Rb5 {[%clk 0:00:17.5]} 89. Kd4 {[%clk 0:00:05.5]} 89... Rxc5 {[%clk
0:00:18.4]} 90. Ke4 {[%clk 0:00:05.7]} 90... Rd5 {[%clk 0:00:19.1]} 0-1

[Event "Late-Titled-Tuesday-Blitz-February-27-2024"]
[Site "Chess.com"]
[Date "2024.02.27"]
[Round "10"]
[White "GodzillaChessYoutube"]
[Black "rhungaski"]
[Result "1-0"]
[WhiteElo "2642"]
[BlackElo "2585"]
[TimeControl "180+1"]
[EndTime "15:51:35 PST"]
[Termination "GodzillaChessYoutube won by resignation"]

1. d4 {[%clk 0:03:00.9]} 1... Nf6 {[%clk 0:02:59.7]} 2. Bf4 {[%clk 0:03:00.3]}
2... d5 {[%clk 0:02:59.1]} 3. e3 {[%clk 0:03:00.5]} 3... c5 {[%clk 0:02:59.2]}
4. Nf3 {[%clk 0:03:00.3]} 4... Nc6 {[%clk 0:02:57.9]} 5. Bb5 {[%clk 0:02:59.7]}
5... Nh5 {[%clk 0:02:40.2]} 6. dxc5 {[%clk 0:02:52.5]} 6... Nxf4 {[%clk
0:02:39.8]} 7. exf4 {[%clk 0:02:52]} 7... a6 {[%clk 0:02:04.3]} 8. Bxc6+ {[%clk
0:02:50.5]} 8... bxc6 {[%clk 0:02:05.2]} 9. c3 {[%clk 0:02:44]} 9... g6 {[%clk
0:01:43.2]} 10. Qd4 {[%clk 0:02:41]} 10... f6 {[%clk 0:01:43.2]} 11. O-O {[%clk
0:02:38.7]} 11... Be6 {[%clk 0:01:41.6]} 12. Re1 {[%clk 0:02:37.7]} 12... Bf7
{[%clk 0:01:41.3]} 13. Qxf6 {[%clk 0:02:31.2]} 1-0

[Event "Late-Titled-Tuesday-Blitz-February-27-2024"]
[Site "Chess.com"]
[Date "2024.02.27"]
[Round "10"]
[White "Yahisalem"]
[Black "ritanovikova"]
[Result "0-1"]
[WhiteElo "2031"]
[BlackElo "2232"]
[TimeControl "180+1"]
[EndTime "15:51:38 PST"]
[Termination "ritanovikova won by resignation"]

1. e4 {[%clk 0:03:00.9]} 1... g6 {[%clk 0:02:58.8]} 2. d4 {[%clk 0:02:53.7]}
2... Bg7 {[%clk 0:02:59.1]} 3. Be3 {[%clk 0:02:44.5]} 3... d6 {[%clk 0:03:00]}
4. c4 {[%clk 0:02:39.9]} 4... Nf6 {[%clk 0:02:57.2]} 5. Nc3 {[%clk 0:02:39.1]}
5... O-O {[%clk 0:02:54.3]} 6. Bd3 {[%clk 0:02:38.9]} 6... e5 {[%clk 0:02:50.6]}
7. d5 {[%clk 0:02:38.1]} 7... a5 {[%clk 0:02:48.7]} 8. a4 {[%clk 0:02:37.5]}
8... b6 {[%clk 0:02:47.9]} 9. Nge2 {[%clk 0:02:30.9]} 9... Nbd7 {[%clk
0:02:44.8]} 10. O-O {[%clk 0:02:30.4]} 10... Ng4 {[%clk 0:02:42.2]} 11. Bd2
{[%clk 0:02:23.3]} 11... Qh4 {[%clk 0:02:28.9]} 12. h3 {[%clk 0:02:21.4]} 12...
Ngf6 {[%clk 0:02:26.1]} 13. Qc1 {[%clk 0:02:12.5]} 13... Nc5 {[%clk 0:02:23.3]}
14. Bc2 {[%clk 0:02:10.8]} 14... Bxh3 {[%clk 0:02:18.4]} 15. gxh3 {[%clk
0:02:06.1]} 15... Qxh3 {[%clk 0:02:16.8]} 16. Ng3 {[%clk 0:02:04]} 16... Ng4
{[%clk 0:02:09.3]} 0-1

[Event "Late-Titled-Tuesday-Blitz-February-27-2024"]
[Site "Chess.com"]
[Date "2024.02.27"]
[Round "10"]
[White "Statham_01"]
[Black "giomar27"]
[Result "1-0"]
[WhiteElo "2544"]
[BlackElo "2399"]
[TimeControl "180+1"]
[EndTime "15:51:40 PST"]
[Termination "Statham_01 won by resignation"]

1. Na3 {[%clk 0:03:00.9]} 1... d5 {[%clk 0:02:56.8]} 2. d4 {[%clk 0:02:58.8]}
2... c5 {[%clk 0:02:55.4]} 3. e3 {[%clk 0:02:56.4]} 3... Nc6 {[%clk 0:02:55.3]}
4. c4 {[%clk 0:02:56.3]} 4... cxd4 {[%clk 0:02:52.9]} 5. exd4 {[%clk 0:02:56.1]}
5... dxc4 {[%clk 0:02:53.3]} 6. d5 {[%clk 0:02:55.2]} 6... Ne5 {[%clk
0:02:53.6]} 7. Nxc4 {[%clk 0:02:51.3]} 7... Nxc4 {[%clk 0:02:52.4]} 8. Bxc4
{[%clk 0:02:52.2]} 8... Nf6 {[%clk 0:02:52.5]} 9. Nf3 {[%clk 0:02:51.7]} 9... g6
{[%clk 0:02:52.6]} 10. O-O {[%clk 0:02:46.7]} 10... Bg7 {[%clk 0:02:52.9]} 11.
Bf4 {[%clk 0:02:43.2]} 11... O-O {[%clk 0:02:51]} 12. Rc1 {[%clk 0:02:43.7]}
12... a6 {[%clk 0:02:51.1]} 13. a4 {[%clk 0:02:43]} 13... Bg4 {[%clk 0:02:49.1]}
14. h3 {[%clk 0:02:42]} 14... Bf5 {[%clk 0:02:49]} 15. Re1 {[%clk 0:02:38.2]}
15... Rc8 {[%clk 0:02:48.8]} 16. d6 {[%clk 0:02:26.1]} 16... exd6 {[%clk
0:02:40.8]} 17. Bxd6 {[%clk 0:02:27]} 17... Re8 {[%clk 0:02:39.3]} 18. Bxf7+
{[%clk 0:01:50.2]} 18... Kxf7 {[%clk 0:02:35.3]} 19. Ng5+ {[%clk 0:01:43.7]}
19... Kg8 {[%clk 0:02:26.6]} 20. Qb3+ {[%clk 0:01:31.3]} 20... Be6 {[%clk
0:02:24.7]} 21. Rxe6 {[%clk 0:01:31.3]} 1-0

[Event "Late-Titled-Tuesday-Blitz-February-27-2024"]
[Site "Chess.com"]
[Date "2024.02.27"]
[Round "10"]
[White "Nouali_Mohamed"]
[Black "Sjakkerntobi"]
[Result "1-0"]
[WhiteElo "2534"]
[BlackElo "2460"]
[TimeControl "180+1"]
[EndTime "15:52:11 PST"]
[Termination "Nouali_Mohamed won by resignation"]

1. e4 {[%clk 0:02:59.7]} 1... e6 {[%clk 0:02:58.5]} 2. d4 {[%clk 0:02:59.8]}
2... d6 {[%clk 0:02:58.7]} 3. Nc3 {[%clk 0:03:00.3]} 3... g6 {[%clk 0:02:57.5]}
4. Nf3 {[%clk 0:02:59.3]} 4... Bg7 {[%clk 0:02:58]} 5. h4 {[%clk 0:02:57.8]}
5... h6 {[%clk 0:02:58.2]} 6. Be3 {[%clk 0:02:56.6]} 6... Ne7 {[%clk 0:02:57.5]}
7. Qd2 {[%clk 0:02:55.3]} 7... b6 {[%clk 0:02:57.8]} 8. O-O-O {[%clk 0:02:50.7]}
8... Bb7 {[%clk 0:02:58]} 9. g4 {[%clk 0:02:47.2]} 9... Nd7 {[%clk 0:02:56]} 10.
g5 {[%clk 0:02:41.8]} 10... h5 {[%clk 0:02:56.1]} 11. Bh3 {[%clk 0:02:41.8]}
11... a6 {[%clk 0:02:54.4]} 12. d5 {[%clk 0:02:33.7]} 12... e5 {[%clk
0:02:50.9]} 13. Ng1 {[%clk 0:02:29.7]} 13... Nc5 {[%clk 0:02:38.5]} 14. b4
{[%clk 0:02:24.3]} 14... Nd7 {[%clk 0:02:37.5]} 15. Nge2 {[%clk 0:02:22]} 15...
O-O {[%clk 0:02:35.6]} 16. a3 {[%clk 0:02:13.3]} 16... b5 {[%clk 0:02:36.1]} 17.
Bxd7 {[%clk 0:01:50.3]} 17... Qxd7 {[%clk 0:02:32.5]} 18. Ng3 {[%clk 0:01:51.2]}
18... a5 {[%clk 0:02:28.4]} 19. Kb2 {[%clk 0:01:47.7]} 19... Nc8 {[%clk
0:02:25.5]} 20. Rhg1 {[%clk 0:01:40.7]} 20... Nb6 {[%clk 0:02:25.1]} 21. Bxb6
{[%clk 0:01:40.9]} 21... cxb6 {[%clk 0:02:25.1]} 22. Qe2 {[%clk 0:01:37.7]}
22... Rfc8 {[%clk 0:02:20.7]} 23. Qxb5 {[%clk 0:01:22.8]} 23... Ba6 {[%clk
0:02:10.8]} 24. Qxd7 {[%clk 0:01:21.3]} 1-0

[Event "Late-Titled-Tuesday-Blitz-February-27-2024"]
[Site "Chess.com"]
[Date "2024.02.27"]
[Round "10"]
[White "TanitoluwaAps116"]
[Black "AlexTruskavetsky"]
[Result "1-0"]
[WhiteElo "2900"]
[BlackElo "2698"]
[TimeControl "180+1"]
[EndTime "15:52:19 PST"]
[Termination "TanitoluwaAps116 won by resignation"]

1. e4 {[%clk 0:03:00.9]} 1... c5 {[%clk 0:03:00]} 2. Nf3 {[%clk 0:03:00]} 2...
Nc6 {[%clk 0:02:59.9]} 3. Bb5 {[%clk 0:02:59.8]} 3... g6 {[%clk 0:03:00]} 4.
Bxc6 {[%clk 0:03:00]} 4... dxc6 {[%clk 0:03:00.9]} 5. d3 {[%clk 0:03:00]} 5...
Bg7 {[%clk 0:03:01.3]} 6. h3 {[%clk 0:03:00.7]} 6... e5 {[%clk 0:03:01.6]} 7.
Be3 {[%clk 0:03:00.4]} 7... b6 {[%clk 0:03:01.4]} 8. Nbd2 {[%clk 0:03:00.7]}
8... Qc7 {[%clk 0:03:01.4]} 9. O-O {[%clk 0:03:00.8]} 9... Nf6 {[%clk
0:03:01.7]} 10. a3 {[%clk 0:03:01]} 10... O-O {[%clk 0:03:01.7]} 11. b4 {[%clk
0:03:01.6]} 11... cxb4 {[%clk 0:03:00.1]} 12. axb4 {[%clk 0:03:02.5]} 12... h6
{[%clk 0:02:57.5]} 13. Nc4 {[%clk 0:03:02.6]} 13... Nd7 {[%clk 0:02:57.5]} 14.
Qd2 {[%clk 0:03:00.8]} 14... Kh7 {[%clk 0:02:57.2]} 15. d4 {[%clk 0:02:38.5]}
15... exd4 {[%clk 0:02:55.7]} 16. Bxd4 {[%clk 0:02:39.4]} 16... f6 {[%clk
0:02:44.9]} 17. Rfd1 {[%clk 0:02:33.6]} 17... Ne5 {[%clk 0:02:45]} 18. Nfxe5
{[%clk 0:02:08.9]} 18... fxe5 {[%clk 0:02:45.4]} 19. Bxb6 {[%clk 0:02:09.3]}
19... Qf7 {[%clk 0:02:43.4]} 20. Nd6 {[%clk 0:02:03.2]} 20... Qf6 {[%clk
0:02:41.2]} 21. Nxc8 {[%clk 0:01:55.8]} 21... Raxc8 {[%clk 0:02:39.9]} 22. Rxa7
{[%clk 0:01:51.8]} 22... Rb8 {[%clk 0:02:36.7]} 23. Bc5 {[%clk 0:01:48]} 23...
Rfd8 {[%clk 0:02:36.2]} 24. Rd7 {[%clk 0:01:47.4]} 24... Rxd7 {[%clk 0:02:36]}
25. Qxd7 {[%clk 0:01:48.3]} 25... Qf4 {[%clk 0:02:29.1]} 26. Qxc6 {[%clk
0:01:43.7]} 26... h5 {[%clk 0:02:14.8]} 27. Rd7 {[%clk 0:01:34.1]} 27... Qc1+
{[%clk 0:02:14.7]} 28. Kh2 {[%clk 0:01:34.1]} 28... Kh6 {[%clk 0:02:01.9]} 29.
Be3+ {[%clk 0:01:33.8]} 29... Qxe3 {[%clk 0:01:59.4]} 30. fxe3 {[%clk
0:01:34.7]} 30... Bf6 {[%clk 0:02:00]} 31. Qxf6 {[%clk 0:01:34.7]} 1-0

[Event "Late-Titled-Tuesday-Blitz-February-27-2024"]
[Site "Chess.com"]
[Date "2024.02.27"]
[Round "10"]
[White "Aleksandar-Topalov"]
[Black "DryCounty"]
[Result "0-1"]
[WhiteElo "2364"]
[BlackElo "2640"]
[TimeControl "180+1"]
[EndTime "15:53:25 PST"]
[Termination "DryCounty won by resignation"]

1. b3 {[%clk 0:02:57.4]} 1... Nf6 {[%clk 0:02:58.3]} 2. Bb2 {[%clk 0:02:56.5]}
2... g6 {[%clk 0:02:58.5]} 3. Bxf6 {[%clk 0:02:55.2]} 3... exf6 {[%clk
0:02:58.5]} 4. c4 {[%clk 0:02:55.6]} 4... f5 {[%clk 0:02:58.4]} 5. Nc3 {[%clk
0:02:55.6]} 5... Bg7 {[%clk 0:02:58.6]} 6. e3 {[%clk 0:02:55.9]} 6... O-O {[%clk
0:02:58.5]} 7. Nge2 {[%clk 0:02:56.3]} 7... a6 {[%clk 0:02:58.7]} 8. g3 {[%clk
0:02:56.1]} 8... b5 {[%clk 0:02:58.2]} 9. Bg2 {[%clk 0:02:55.9]} 9... Ra7 {[%clk
0:02:55.1]} 10. cxb5 {[%clk 0:02:54.8]} 10... axb5 {[%clk 0:02:54.6]} 11. Nxb5
{[%clk 0:02:43.6]} 11... Ra5 {[%clk 0:02:52.2]} 12. Nbc3 {[%clk 0:02:43.2]}
12... d5 {[%clk 0:02:50.1]} 13. d4 {[%clk 0:02:42.3]} 13... c6 {[%clk
0:02:48.7]} 14. O-O {[%clk 0:02:41.7]} 14... Qe7 {[%clk 0:02:44.8]} 15. Na4
{[%clk 0:02:37.2]} 15... Nd7 {[%clk 0:02:42.2]} 16. Rc1 {[%clk 0:02:36.1]} 16...
Qd6 {[%clk 0:02:37.5]} 17. Nf4 {[%clk 0:02:30.1]} 17... Ba6 {[%clk 0:02:35.7]}
18. Re1 {[%clk 0:02:27.8]} 18... Bb5 {[%clk 0:02:35.6]} 19. Nc3 {[%clk
0:02:25.3]} 19... Ba6 {[%clk 0:02:33.5]} 20. Qd2 {[%clk 0:02:20.3]} 20... Ra8
{[%clk 0:02:24.7]} 21. Ncxd5 {[%clk 0:02:05.7]} 21... Rxd5 {[%clk 0:02:20.3]}
22. Nxd5 {[%clk 0:02:04.2]} 22... cxd5 {[%clk 0:02:20.3]} 23. a4 {[%clk
0:01:51]} 23... Nf6 {[%clk 0:02:18]} 24. b4 {[%clk 0:01:46.6]} 24... Ne4 {[%clk
0:02:16.9]} 25. Qb2 {[%clk 0:01:45.7]} 25... Bc4 {[%clk 0:02:12.2]} 26. Ra1
{[%clk 0:01:33.7]} 26... Bf8 {[%clk 0:02:10.4]} 27. Reb1 {[%clk 0:01:31.3]}
27... Bd3 {[%clk 0:02:01.2]} 28. Rd1 {[%clk 0:01:28.7]} 28... Bc4 {[%clk
0:02:01.2]} 29. Rdb1 {[%clk 0:01:28.5]} 29... Qb6 {[%clk 0:01:51.5]} 30. b5
{[%clk 0:01:25.2]} 30... Qa5 {[%clk 0:01:50.5]} 31. b6 {[%clk 0:01:19.5]} 31...
Rb8 {[%clk 0:01:50.2]} 32. f3 {[%clk 0:00:58]} 32... Nc3 {[%clk 0:01:49]} 0-1